bitfinex-derivatives/quotes_ETHF0:USTF0_20241018
["timestamp","ask_amount","ask_price","bid_price","bid_amount"]
[1729262042955,0.3789,2639.6,2639.3,3.2078]
[1729262043156,3.2078,2639.9,2639.3,3.2078]
[1729262043357,0.9096,2640.2,2639.3,3.2078]
[1729262043565,3.2078,2640.0,2639.5,0.3789]
[1729262043868,0.9096,2640.2,2639.6,3.2078]
[1729262044068,0.9096,2640.2,2639.9,3.2078]
[1729262044364,0.9096,2640.2,2639.6,3.2078]
[1729262045070,0.9096,2640.2,2640.1,0.37883]
[1729262045364,0.9954,2640.4,2640.3,0.3788]
[1729262045569,41.7592,2640.6,2640.4,0.37878]
[1729262045865,0.9592,2640.6,2640.5,0.37877]
[1729262046266,3.2078,2641.1,2640.9,0.3787]
[1729262046471,3.2078,2641.1,2641.0,0.3787]
[1729262047363,3.2078,2641.1,2640.5,3.2078]
[1729262047563,3.2078,2641.1,2641.0,0.3787]
[1729262047868,3.2078,2641.9,2641.0,4.09]
[1729262048166,3.2078,2641.9,2641.3,3.2078]
[1729262048370,0.9868,2642.0,2641.6,3.2078]
[1729262048668,4.1946,2642.0,2641.3,3.2078]
[1729262049063,4.1946,2642.0,2641.4,0.37863]
[1729262049262,0.37859,2641.8,2641.4,0.37863]
[1729262049565,0.9868,2642.0,2641.3,3.2078]
[1729262049771,0.37858,2641.8,2641.3,3.2078]
[1729262049966,0.37864,2641.4,2641.3,3.2078]
[1729262050162,5.14101,2642.0,2641.3,3.2078]
[1729262050469,0.37871,2640.9,2640.8,3.2078]
[1729262050660,0.37871,2640.9,2640.2,3.2078]
[1729262050661,4.73322,2640.9,2640.2,3.2078]
[1729262050864,0.37876,2640.6,2640.2,3.5866]
[1729262051062,0.3788,2640.3,2640.2,3.2078]
[1729262051261,3.2078,2640.7,2640.2,3.2078]
[1729262051262,0.37877,2640.5,2640.2,3.2078]
[1729262051459,0.3788,2640.3,2640.2,3.2078]
[1729262051664,3.2078,2640.7,2640.2,3.2078]
[1729262051866,0.37879,2640.4,2640.2,3.2078]
[1729262052374,3.2078,2640.7,2640.2,3.2078]
[1729262052568,0.37877,2640.5,2640.2,3.5866]
[1729262052778,0.3788,2640.3,2640.2,3.2078]
[1729262053368,0.3788,2640.3,2639.5,3.2078]
[1729262053369,0.37889,2639.7,2639.5,3.2078]
[1729262053874,3.2078,2639.9,2639.5,3.2078]
[1729262054076,0.37887,2639.8,2639.6,0.37889]
[1729262054271,3.2078,2639.9,2639.5,3.2078]
[1729262054570,1.5537,2640.2,2639.5,3.2078]
[1729262054779,0.37887,2639.9,2639.6,0.37889]
[1729262055077,0.37888,2639.8,2639.5,3.5867]
[1729262055265,3.2078,2639.9,2639.5,7.2978]
[1729262055466,3.2078,2639.9,2639.7,0.37888]
[1729262055665,3.2078,2639.9,2639.5,7.2978]
[1729262055869,0.3789,2639.6,2639.5,3.2078]
[1729262056173,0.37889,2639.7,2639.5,3.2078]
[1729262056379,0.3789,2639.6,2639.5,3.2078]
[1729262056876,3.2078,2639.9,2639.2,4.09]
[1729262057169,0.37891,2639.6,2639.2,4.46895]
[1729262057578,0.37891,2639.5,2639.2,4.46895]
[1729262057770,0.37891,2639.6,2639.2,4.46895]
[1729262057971,3.58666,2639.9,2639.5,4.4689]
[1729262058173,3.2078,2639.9,2639.5,4.09]
[1729262058674,0.3789,2639.6,2639.5,4.09]
[1729262059371,0.94718,2639.8,2639.2,4.09]
[1729262059568,3.2078,2639.9,2639.3,0.37893]
[1729262059767,0.37892,2639.5,2639.2,4.46895]
[1729262060170,3.2078,2639.9,2639.3,3.7888]
[1729262060369,3.2078,2639.9,2639.6,4.09]
[1729262060566,3.2078,2639.9,2639.6,4.46889]
[1729262060567,3.58666,2639.9,2639.6,4.46889]
[1729262060778,8.0969,2640.7,2639.7,6.9958]
[1729262060980,0.37882,2640.2,2639.9,4.46885]
[1729262061273,0.94689,2640.6,2639.9,4.46885]
[1729262061274,0.37884,2640.0,2639.9,4.09]
[1729262061468,0.94689,2640.6,2639.9,4.09]
[1729262061469,0.37883,2640.1,2639.9,4.09]
[1729262061668,3.2078,2640.4,2639.6,4.09]
[1729262061880,0.3789,2639.7,2639.3,0.37893]
[1729262062079,3.9788,2640.0,2639.2,4.09]
[1729262062281,0.37889,2639.7,2639.5,4.09]
[1729262062775,0.37886,2639.9,2639.6,0.37888]
[1729262062981,3.9788,2640.0,2639.6,0.37888]
[1729262063177,1.14984,2640.0,2639.6,0.3789]
[1729262063378,0.37888,2639.8,2639.5,4.4689]
[1729262063674,0.771,2640.0,2639.5,4.09]
[1729262064076,0.37888,2639.8,2639.5,4.46891]
[1729262064469,0.771,2640.0,2639.5,4.46891]
[1729262064671,0.771,2640.0,2639.5,4.09]
[1729262064870,1.14985,2640.0,2639.5,4.09]
[1729262065076,1.72495,2640.5,2639.5,4.09]
[1729262065077,3.9858,2640.5,2639.5,4.09]
[1729262065374,1.73156,2640.4,2639.5,4.09]
[1729262065574,3.2078,2640.0,2639.5,4.09]
[1729262065975,3.2078,2639.7,2639.1,7.2978]
[1729262066177,3.58668,2639.7,2639.5,4.46891]
[1729262066377,0.3789,2639.6,2639.5,4.09]
[1729262066677,0.37888,2639.8,2639.5,4.09]
[1729262066872,3.2078,2640.1,2639.5,4.09]
[1729262067073,0.37889,2639.7,2639.5,4.46891]
[1729262067270,0.745,2640.3,2639.1,3.2078]
[1729262067271,3.2078,2639.6,2639.1,3.2078]
[1729262067476,0.37895,2639.2,2639.1,3.2078]
[1729262069378,3.2078,2639.3,2638.7,3.64]
[1729262069582,1.5017,2639.5,2638.5,3.64]
[1729262069583,0.37904,2638.6,2638.5,3.64]
[1729262069974,4.16864,2638.6,2638.5,3.64]
[1729262070179,0.37908,2638.3,2638.2,3.64]
[1729262070378,0.3791,2638.2,2638.1,3.2078]
[1729262070880,4.15544,2638.6,2638.1,3.2078]
[1729262071189,3.2078,2638.6,2638.4,3.64]
[1729262071375,0.37906,2638.5,2638.4,4.01907]
[1729262071685,0.37909,2638.3,2638.2,4.01909]
[1729262072085,3.2078,2638.6,2638.2,3.64]
[1729262072293,0.37907,2638.5,2638.3,0.37908]
[1729262072586,3.2078,2638.6,2638.2,3.64]
[1729262072786,0.3791,2638.2,2638.1,3.2078]
[1729262073084,3.2078,2638.6,2638.1,3.2078]
[1729262073287,3.58685,2638.6,2638.5,0.37906]
[1729262073495,0.37906,2638.5,2638.4,3.64]
[1729262073682,3.58685,2638.6,2638.5,0.37906]
[1729262074076,3.2078,2638.6,2638.5,0.37906]
[1729262074277,0.7271,2638.7,2638.4,3.64]
[1729262074593,0.7271,2638.7,2638.6,0.37904]
[1729262074885,0.7271,2638.7,2638.5,0.37905]
[1729262075189,0.7271,2638.7,2638.1,6.8478]
[1729262075190,0.7271,2638.7,2638.3,0.37908]
[1729262075388,0.7271,2638.7,2638.1,6.8478]
[1729262075687,0.37906,2638.5,2638.3,0.37908]
[1729262076083,0.7271,2638.7,2638.1,3.2078]
[1729262076283,0.94775,2638.3,2637.8,3.2078]
[1729262076487,0.3792,2637.5,2637.4,3.2078]
[1729262076884,4.1704,2637.5,2637.4,3.2078]
[1729262077778,4.1704,2637.5,2636.6,3.2078]
[1729262077779,7.4312,2637.5,2636.6,3.2078]
[1729262077988,3.2078,2637.3,2637.2,0.37924]
[1729262078285,6.9998,2637.3,2636.7,3.64]
[1729262078490,3.2078,2637.3,2636.6,3.2078]
[1729262078792,3.2078,2637.3,2636.3,3.2078]
[1729262078793,3.2078,2637.0,2636.3,3.2078]
[1729262079084,0.37932,2636.7,2636.5,0.37934]
[1729262079287,1.4776,2636.9,2636.3,3.2078]
[1729262079479,0.3793,2636.8,2636.6,0.37932]
[1729262079682,5.2704,2636.9,2636.3,3.2078]
[1729262079989,0.37934,2636.6,2636.4,0.37935]
[1729262080183,0.37934,2636.6,2636.3,3.2078]
[1729262080385,0.37932,2636.7,2636.3,3.2078]
[1729262080586,0.37933,2636.6,2636.5,0.37934]
[1729262080890,1.4776,2636.9,2636.5,0.37934]
[1729262081188,0.37933,2636.6,2636.5,0.37934]
[1729262081390,5.2704,2636.9,2636.3,3.2078]
[1729262081587,0.3793,2636.8,2636.6,0.37932]
[1729262081784,0.7448,2636.9,2636.8,0.3793]
[1729262081985,0.7448,2636.9,2636.0,7.3078]
[1729262082188,0.37932,2636.7,2636.6,0.37933]
[1729262082489,0.37932,2636.7,2636.5,0.37933]
[1729262082802,0.37932,2636.7,2636.1,0.94851]
[1729262082803,0.7448,2636.9,2636.3,3.2078]
[1729262082996,0.37933,2636.6,2636.5,0.37934]
[1729262083187,0.7448,2636.9,2636.3,3.2078]
[1729262083382,0.7323,2637.3,2636.5,0.94836]
[1729262083383,1.11154,2637.3,2636.5,0.94836]
[1729262083587,0.7323,2637.3,2636.7,0.94827]
[1729262083784,0.7323,2637.3,2637.1,0.37925]
[1729262083991,0.7323,2637.3,2636.9,0.37927]
[1729262083992,0.37926,2637.1,2636.9,0.37927]
[1729262084187,0.7323,2637.3,2636.5,0.94836]
[1729262084390,0.37927,2637.1,2637.0,0.37927]
[1729262084587,0.37927,2637.1,2636.5,0.94836]
[1729262084793,0.94818,2637.1,2636.3,3.2078]
[1729262084988,0.37933,2636.6,2636.4,0.37935]
[1729262085184,3.2078,2637.1,2636.3,3.2078]
[1729262085387,0.37933,2636.6,2636.4,0.37936]
[1729262085585,0.94818,2637.0,2636.3,3.2078]
[1729262085792,0.37938,2636.3,2636.1,0.3794]
[1729262086094,3.2078,2636.5,2636.0,3.2078]
[1729262086299,0.3794,2636.1,2636.0,3.58721]
[1729262086695,0.3794,2636.1,2636.0,3.2078]
[1729262086998,0.3795,2635.5,2635.4,0.3795]
[1729262087298,0.94857,2636.0,2634.9,0.94892]
[1729262087299,1.32816,2635.6,2635.0,0.37955]
[1729262087595,0.37955,2635.1,2634.9,3.2078]
[1729262087801,3.2078,2635.3,2634.9,3.2078]
[1729262087993,7.8952,2635.2,2634.5,3.2078]
[1729262088297,0.37959,2634.8,2634.2,0.37967]
[1729262088508,4.1,2634.9,2634.1,3.2078]
[1729262088713,0.37967,2634.2,2634.1,3.2078]
[1729262088994,3.2078,2634.3,2633.8,3.2078]
[1729262089194,3.2078,2634.3,2634.0,0.3797]
[1729262089398,3.2078,2634.3,2633.2,3.2078]
[1729262089399,7.8968,2634.2,2633.2,3.2078]
[1729262089697,0.37974,2633.8,2633.2,3.2078]
[1729262089898,3.2078,2633.9,2633.2,3.2078]
[1729262089899,0.37975,2633.7,2633.5,0.37977]
[1729262090087,3.2078,2633.9,2633.2,3.2078]
[1729262090088,0.37977,2633.6,2633.2,3.2078]
[1729262090291,3.2078,2633.9,2633.4,0.37978]
[1729262090498,1.72642,2634.4,2633.2,3.2078]
[1729262090499,3.2078,2634.3,2633.5,3.2078]
[1729262090693,0.7773,2634.4,2634.3,0.37966]
[1729262090896,0.7773,2634.4,2633.7,0.94937]
[1729262091095,0.7773,2634.4,2634.3,0.37966]
[1729262091305,0.37967,2634.3,2633.6,3.2078]
[1729262091597,0.7773,2634.4,2633.9,0.37971]
[1729262091803,3.2078,2634.0,2633.2,3.2078]
[1729262092095,0.37978,2633.5,2633.3,0.3798]
[1729262092301,3.2078,2633.7,2633.3,0.3798]
[1729262092302,3.58756,2633.7,2633.3,0.3798]
[1729262092497,3.2078,2633.7,2633.2,3.2078]
[1729262092700,0.3798,2633.3,2633.2,3.2078]
[1729262092900,4.1,2633.5,2633.2,3.2078]
[1729262092901,0.37979,2633.4,2633.2,3.2078]
[1729262093202,0.37979,2633.4,2633.2,3.58761]
[1729262093397,4.1774,2633.3,2633.2,3.2078]
[1729262093595,0.37985,2633.0,2632.8,3.2078]
[1729262093905,0.37985,2633.0,2631.9,6.3549]
[1729262093906,0.37991,2632.6,2632.3,0.37994]
[1729262094093,0.37991,2632.6,2632.0,3.2078]
[1729262094094,0.3799,2632.7,2632.0,3.2078]
[1729262094295,3.2078,2633.0,2632.0,3.2078]
[1729262094499,0.37987,2632.9,2632.6,0.3799]
[1729262094702,3.2078,2633.0,2632.6,0.37989]
[1729262095200,0.37987,2632.9,2632.6,0.3799]
[1729262095408,3.2078,2633.0,2632.5,0.37991]
[1729262095702,0.37988,2632.9,2632.5,0.37991]
[1729262095897,3.2078,2633.0,2632.0,3.2078]
[1729262096207,0.37989,2632.8,2632.0,3.2078]
[1729262096400,0.37989,2632.8,2631.9,1.5219]
[1729262096401,3.2078,2633.0,2632.3,3.2078]
[1729262097198,0.37983,2633.2,2632.8,0.37987]
[1729262097401,0.37983,2633.2,2632.3,3.2078]
[1729262097402,3.2078,2633.4,2632.6,3.2078]
[1729262097600,0.37983,2633.2,2632.8,0.37987]
[1729262097809,3.5876,2633.4,2633.0,0.37984]
[1729262098003,0.37981,2633.3,2633.0,0.37984]
[1729262098304,0.37982,2633.2,2632.6,3.2078]
[1729262098504,0.37982,2633.2,2632.4,0.94984]
[1729262098505,3.2078,2633.4,2632.4,0.94984]
[1729262098702,0.37981,2633.3,2632.6,3.2078]
[1729262098903,0.3798,2633.3,2632.6,3.2078]
[1729262099107,3.2078,2633.4,2632.6,3.2078]
[1729262099305,0.37987,2632.9,2632.6,0.3799]
[1729262099501,0.37985,2633.0,2632.7,0.37988]
[1729262099708,0.37981,2633.3,2632.3,3.2078]
[1729262100006,3.2078,2633.4,2633.0,0.37985]
[1729262100212,0.7974,2633.5,2632.3,3.2078]
[1729262100504,3.2078,2634.0,2633.1,3.2078]
[1729262100697,3.2078,2634.0,2633.2,0.94955]
[1729262100898,3.2078,2634.0,2633.4,3.2078]
[1729262101095,3.5875,2634.0,2633.7,0.37974]
[1729262101297,3.2078,2634.0,2633.4,3.2078]
[1729262101696,3.2078,2634.0,2632.3,1.89973]
[1729262101697,4.1,2633.8,2632.6,3.2078]
[1729262101902,3.2078,2633.7,2632.9,3.2078]
[1729262102105,3.2078,2633.7,2632.6,4.15756]
[1729262102407,0.7776,2633.9,2632.6,3.2078]
[1729262102408,3.2078,2633.3,2632.6,3.2078]
[1729262102807,0.37989,2632.7,2632.6,3.2078]
[1729262103002,3.2078,2633.0,2631.9,3.2078]
[1729262103311,3.2078,2633.0,2632.1,3.2078]
[1729262103718,0.7497,2633.6,2632.4,3.2078]
[1729262104010,0.37984,2633.1,2632.8,0.37987]
[1729262104711,3.2078,2633.4,2632.4,3.2078]
[1729262104902,3.2078,2633.4,2632.5,0.37992]
[1729262104903,0.37986,2633.0,2632.5,0.37992]
[1729262105102,3.2078,2633.4,2632.4,3.2078]
[1729262105503,4.15731,2633.4,2632.4,3.2078]
[1729262105806,5.0497,2632.8,2631.9,3.2078]
[1729262105998,0.37997,2632.2,2631.9,3.58779]
[1729262106205,0.37995,2632.3,2632.0,0.37998]
[1729262106605,0.37997,2632.2,2632.0,0.37999]
[1729262106809,0.37999,2632.0,2631.9,3.2078]
[1729262107015,3.2078,2632.6,2631.9,3.2078]
[1729262107223,0.37995,2632.3,2632.0,0.37998]
[1729262107517,3.2078,2632.6,2631.9,3.2078]
[1729262107717,0.37999,2632.0,2631.9,3.2078]
[1729262107920,3.2078,2632.3,2631.6,3.2078]
[1729262108418,2.44167,2632.7,2631.1,0.38012]
[1729262108419,4.15783,2631.9,2631.1,0.38012]
[1729262108614,4.15783,2631.9,2631.0,3.2078]
[1729262108615,3.2078,2631.6,2631.0,3.2078]
[1729262108924,0.38016,2630.9,2630.7,3.2078]
[1729262109111,3.2078,2630.9,2630.2,3.2078]
[1729262109315,0.38018,2630.7,2630.1,0.38026]
[1729262109515,0.38021,2630.5,2630.2,0.38024]
[1729262109722,0.38023,2630.4,2629.7,3.2078]
[1729262109921,3.2078,2630.3,2629.7,3.2078]
[1729262110310,3.5881,2629.9,2629.4,0.38036]
[1729262110620,3.2078,2629.9,2629.0,3.2078]
[1729262110815,40.8,2630.1,2629.3,3.2078]
[1729262111020,40.8,2630.1,2629.7,0.38032]
[1729262111321,41.18027,2630.1,2629.3,3.2078]
[1729262111513,40.8,2630.1,2629.3,3.2078]
[1729262111709,40.8,2630.1,2629.7,0.38032]
[1729262111909,40.8,2630.1,2629.4,0.38037]
[1729262112216,40.8,2630.1,2629.7,0.38031]
[1729262112611,40.8,2630.1,2629.0,5.78016]
[1729262112612,3.2078,2630.3,2629.6,3.2078]
[1729262113010,3.2078,2630.3,2629.3,3.2078]
[1729262113216,0.38026,2630.2,2629.7,0.38031]
[1729262113416,3.2078,2630.3,2629.3,3.2078]
[1729262113626,0.38026,2630.2,2629.8,0.3803]
[1729262113817,3.9645,2630.7,2629.3,7.3078]
[1729262114015,0.95028,2631.2,2629.1,1.5237]
[1729262114016,3.58792,2631.2,2630.2,3.2078]
[1729262114218,3.2078,2631.1,2630.4,0.95056]
[1729262114417,3.2078,2631.3,2630.5,3.2078]
[1729262114717,45.6961,2631.7,2630.5,3.2078]
[1729262114923,0.38005,2631.6,2631.2,0.3801]
[1729262115122,0.38007,2631.5,2631.2,0.3801]
[1729262115319,3.8,2631.6,2630.5,3.2078]
[1729262115521,0.7961,2631.7,2630.5,3.2078]
[1729262115824,0.7961,2631.7,2630.6,0.95049]
[1729262116020,0.38005,2631.6,2631.3,0.38009]
[1729262116222,0.7961,2631.7,2630.8,3.2078]
[1729262116526,4.8961,2631.7,2630.8,3.2078]
[1729262116720,3.2078,2631.3,2630.2,0.758]
[1729262117026,3.2078,2631.3,2630.2,1.70863]
[1729262117326,0.38016,2630.9,2630.6,0.38019]
[1729262117529,0.38012,2631.2,2630.8,0.38015]
[1729262117717,3.2078,2631.3,2631.2,0.38011]
[1729262117919,0.7961,2631.7,2630.6,4.1]
[1729262117920,3.2078,2631.7,2631.6,0.38005]
[1729262118128,0.7416,2632.2,2631.5,0.95017]
[1729262118328,0.7416,2632.2,2632.0,0.37998]
[1729262118633,0.37991,2632.6,2632.2,0.37995]
[1729262118838,0.37993,2632.5,2631.6,3.2078]
[1729262119123,3.5877,2632.7,2632.4,0.37992]
[1729262119327,3.2078,2632.9,2632.2,3.2078]
[1729262119522,3.2078,2632.9,2632.0,4.1]
[1729262119523,3.947,2633.4,2632.5,3.2078]
[1729262119837,0.37983,2633.2,2632.9,0.37985]
[1729262120128,3.947,2633.4,2633.1,0.37982]
[1729262120336,3.947,2633.4,2633.3,0.3798]
[1729262120337,3.2078,2633.4,2633.3,0.3798]
[1729262120535,1.1423823,2634.6,2632.9,3.2078]
[1729262120536,3.2078,2633.7,2633.6,0.37976]
[1729262120934,3.2078,2634.0,2633.4,0.37978]
[1729262121131,0.37972,2633.9,2633.5,0.37977]
[1729262121335,0.37982,2633.2,2632.9,3.2078]
[1729262121840,3.2078,2633.5,2633.4,0.37979]
[1729262122143,3.2078,2633.8,2633.7,0.37974]
[1729262122332,3.2078,2633.8,2633.3,0.3798]
[1729262122532,3.2078,2633.8,2633.7,0.37975]
[1729262122740,7.38434,2633.8,2633.5,0.37977]
[1729262122939,3.2078,2633.8,2633.2,3.2078]
[1729262123743,3.2078,2633.8,2633.7,0.37975]
[1729262123943,44.0078,2634.2,2633.3,5.04951]
[1729262124134,3.2078,2634.2,2634.1,0.37969]
[1729262124443,3.2078,2634.2,2633.6,3.2078]
[1729262124641,3.58749,2634.2,2633.8,0.37973]
[1729262124940,3.2078,2634.2,2633.2,3.9816]
[1729262125140,3.2078,2634.2,2633.2,3.58761]
[1729262125141,0.37975,2633.7,2633.2,3.58761]
[1729262125440,3.2078,2633.8,2633.2,3.2078]
[1729262125646,7.8976,2633.7,2633.2,3.2078]
[1729262125834,0.3798,2633.3,2633.2,3.2078]
[1729262126139,0.3798,2633.4,2632.4,0.94983]
[1729262126347,3.2078,2633.0,2632.3,3.2078]
[1729262126546,0.94952,2633.3,2632.3,0.37994]
[1729262126547,3.5877,2632.7,2632.3,0.37994]
[1729262126741,3.2078,2632.7,2631.9,3.2078]
[1729262127949,0.37991,2632.6,2632.2,0.37996]
[1729262128243,3.2078,2632.7,2631.6,3.2078]
[1729262128441,3.2078,2632.7,2632.6,0.3799]
[1729262128642,3.2078,2632.7,2632.0,0.94999]
[1729262129141,3.2078,2632.7,2632.6,0.3799]
[1729262129347,0.7332,2633.5,2632.5,3.2078]
[1729262129638,0.7332,2633.5,2632.5,0.37992]
[1729262129639,0.37989,2632.8,2632.5,0.37992]
[1729262129939,3.2078,2633.3,2632.1,3.2078]
[1729262130142,1.11298,2633.5,2633.2,0.37981]
[1729262130344,3.2078,2633.6,2633.5,0.37977]
[1729262130844,3.58756,2633.6,2633.0,3.2078]
[1729262131035,3.58756,2633.6,2632.3,3.2078]
[1729262131036,7.0054,2633.6,2632.3,3.2078]
[1729262131239,7.3078,2633.3,2632.1,0.7278]
[1729262131450,0.37988,2632.8,2632.5,0.37991]
[1729262131647,3.2078,2633.1,2632.0,3.2078]
[1729262131839,0.3799,2632.7,2632.0,3.2078]
[1729262132038,0.3799,2632.7,2631.8,0.95005]
[1729262132039,0.37988,2632.8,2632.5,0.37991]
[1729262132236,0.37989,2632.7,2632.4,0.37993]
[1729262132436,0.37987,2632.9,2632.5,0.37991]
[1729262132741,0.37988,2632.8,2632.5,0.37991]
[1729262132941,0.37985,2633.0,2632.6,0.3799]
[1729262133144,0.37987,2632.9,2632.1,0.94995]
[1729262133352,3.9972,2633.1,2632.0,3.2078]
[1729262133745,0.37989,2632.8,2632.5,0.37992]
[1729262133940,0.37987,2632.9,2632.6,0.3799]
[1729262134750,3.7984,2632.9,2632.0,3.2078]
[1729262134950,3.9972,2633.1,2632.0,3.2078]
[1729262135143,0.37991,2632.6,2632.4,0.37993]
[1729262135344,0.37992,2632.5,2632.1,0.37998]
[1729262135652,3.2078,2632.8,2632.0,3.2078]
[1729262135848,3.2078,2632.8,2632.1,0.37998]
[1729262136044,0.37998,2632.1,2632.0,3.2078]
[1729262136244,0.94984,2632.4,2631.3,3.2078]
[1729262136447,3.2078,2632.2,2631.6,3.2078]
[1729262136943,0.38,2632.0,2631.7,0.38002]
[1729262137144,3.2078,2632.2,2631.6,3.2078]
[1729262137340,0.38003,2631.7,2631.6,3.2078]
[1729262137649,7.3078,2631.9,2631.1,0.69830451]
[1729262137948,0.38011,2631.2,2631.1,0.69830451]
[1729262138451,44.0078,2631.3,2631.1,0.69830451]
[1729262138653,3.2078,2631.3,2631.2,0.38011]
[1729262138846,0.38006,2631.5,2631.1,0.69830451]
[1729262139047,0.38009,2631.4,2631.1,1.07841451]
[1729262139245,0.38008,2631.4,2631.2,0.3801]
[1729262139544,3.2078,2631.6,2631.1,0.69830451]
[1729262139545,0.38011,2631.2,2631.1,0.69830451]
[1729262139748,0.38011,2631.2,2631.1,0.00960451]
[1729262139949,4.18092,2631.1,2631.0,1.25864401]
[1729262140156,0.38012,2631.1,2631.0,1.25864401]
[1729262140352,4.18092,2631.1,2631.0,1.25864401]
[1729262140550,3.5879,2631.3,2631.1,0.38012]
[1729262140755,3.2078,2631.6,2631.0,1.25864401]
[1729262140956,0.793,2631.8,2631.7,0.38003]
[1729262141150,3.2078,2632.2,2631.3,0.95021]
[1729262141343,3.2078,2632.2,2631.0,1.25864401]
[1729262141344,3.2078,2632.2,2631.5,3.2078]
[1729262141546,1.47798043,2632.6,2631.5,3.2078]
[1729262141752,1.85789043,2632.6,2632.4,0.37993]
[1729262142062,1.47798043,2632.6,2631.8,3.2078]
[1729262142357,1.47798043,2632.6,2632.5,0.37992]
[1729262142853,1.47798043,2632.6,2632.2,3.2078]
[1729262143060,1.85789043,2632.6,2631.9,3.2078]
[1729262143251,1.47798043,2632.6,2631.9,3.2078]
[1729262143447,1.47798043,2632.6,2632.5,0.37992]
[1729262144160,1.47798043,2632.6,2632.5,7.38612]
[1729262144658,3.94157803,2632.9,2632.8,0.37988]
[1729262144852,0.68699561,2632.9,2632.8,7.68768]
[1729262145161,1.97056682,2633.5,2633.2,0.37982]
[1729262145358,1.97056682,2633.5,2633.2,3.58762]
[1729262145754,1.97056682,2633.5,2632.9,3.2078]
[1729262145964,2.35034682,2633.5,2633.2,0.37982]
[1729262146150,0.37979,2633.4,2633.1,0.37982]
[1729262146353,2.35034682,2633.5,2633.1,0.37982]
[1729262146553,2.35034682,2633.5,2632.9,3.2078]
[1729262146554,1.97056682,2633.5,2632.9,3.2078]
[1729262146750,1.97056682,2633.5,2633.2,3.58762]
[1729262147466,2.35034682,2633.5,2633.2,3.58762]
[1729262147763,1.97056682,2633.5,2633.2,3.2078]
[1729262147957,2.35034682,2633.5,2633.2,3.58762]
[1729262148363,1.97056682,2633.5,2633.2,3.58762]
[1729262148555,1.97056682,2633.5,2633.2,7.38522]
[1729262148964,1.97056682,2633.5,2633.2,3.58762]
[1729262149265,1.71589103,2633.3,2633.2,3.58762]
[1729262150166,1.71589103,2633.3,2633.2,7.38522]
[1729262152767,0.90589103,2633.3,2633.2,7.38522]
[1729262153159,0.90589103,2633.3,2633.2,3.58762]
[1729262153471,0.90589103,2633.3,2633.2,3.2078]
[1729262153861,1.28569103,2633.3,2633.2,3.2078]
[1729262154056,0.90589103,2633.3,2633.2,3.2078]
[1729262154255,0.90589103,2633.3,2633.2,3.58762]
[1729262154461,0.90589103,2633.3,2633.2,3.2078]
[1729262155461,1.28569103,2633.3,2633.2,3.2078]
[1729262156083,0.90589103,2633.3,2633.2,3.2078]
[1729262156258,0.3798,2633.4,2633.2,3.58762]
[1729262156464,0.80518,2633.5,2633.2,3.58761]
[1729262156670,0.80518,2633.5,2633.2,3.2078]
[1729262156972,0.80518,2633.5,2633.2,3.58761]
[1729262157669,0.4254,2633.5,2633.2,3.58761]
[1729262157862,0.37979,2633.4,2633.2,3.58761]
[1729262158671,0.4254,2633.5,2633.4,0.37979]
[1729262158964,3.2078,2633.9,2633.4,3.7976]
[1729262159266,3.2078,2634.2,2633.8,0.37972]
[1729262159468,0.37971,2634.0,2633.8,0.37972]
[1729262159962,6.27843,2634.4,2633.5,3.2078]
[1729262159963,1.2293,2634.4,2633.5,3.2078]
[1729262160162,1.2293,2634.4,2633.6,3.2078]
[1729262160371,0.37979,2633.5,2633.3,3.5876]
[1729262160669,3.2078,2633.9,2633.3,3.2078]
[1729262161466,3.58752,2633.9,2633.7,0.37974]
[1729262161668,0.37974,2633.8,2633.6,0.37975]
[1729262161869,3.2078,2633.9,2633.4,0.37979]
[1729262161870,0.37977,2633.6,2633.4,0.37979]
[1729262162073,3.58752,2633.9,2633.7,0.37974]
[1729262162366,0.37971,2634.0,2633.8,0.37973]
[1729262162567,40.8,2634.3,2633.4,4.1]
[1729262162770,3.2078,2635.0,2633.9,3.2078]
[1729262162968,3.2078,2635.0,2634.9,0.37957]
[1729262163164,3.58737,2635.0,2634.7,0.37959]
[1729262163363,3.2078,2635.0,2634.8,0.37958]
[1729262163561,3.2078,2635.0,2634.3,4.15695]
[1729262163862,3.2078,2635.0,2634.3,3.6381]
[1729262164060,3.2078,2635.0,2634.1,3.2078]
[1729262164263,0.37957,2634.9,2634.6,0.37961]
[1729262164465,3.2078,2635.0,2634.8,0.37958]
[1729262164664,3.58736,2635.0,2634.4,3.2078]
[1729262164863,3.2078,2635.0,2634.8,0.37958]
[1729262165065,3.58736,2635.0,2634.7,0.37959]
[1729262165272,3.2078,2635.0,2634.0,3.2078]
[1729262165471,3.2078,2635.0,2634.4,0.37964]
[1729262165676,0.37957,2634.9,2634.5,0.37963]
[1729262165875,3.6215,2635.3,2634.7,0.37959]
[1729262166072,3.2078,2635.3,2634.7,3.2078]
[1729262166371,3.6307,2635.7,2634.9,3.2078]
[1729262167075,0.37949,2635.5,2635.2,0.37953]
[1729262167369,0.3795,2635.5,2635.1,0.37954]
[1729262167577,3.2078,2635.7,2634.9,3.2078]
[1729262167972,0.94869,2635.6,2634.9,3.2078]
[1729262168175,0.94872,2635.5,2634.9,3.2078]
[1729262168374,0.37956,2635.0,2634.9,3.2078]
[1729262168574,0.94869,2635.6,2634.9,3.2078]